bitfinex-derivatives/quotes_ETHF0:USTF0_20250224
["timestamp","ask_amount","ask_price","bid_price","bid_amount"]
[1740394776391,3.7978,2683.8,2683.5,0.5826]
[1740394776588,3.7978,2683.8,2683.6,0.5743]
[1740394777595,3.2078,2683.8,2683.6,0.5743]
[1740394777902,0.5855,2684.2,2683.6,3.7821]
[1740394782494,3.2078,2684.4,2683.6,3.7821]
[1740394782700,3.2078,2684.4,2683.6,5.5281]
[1740394783101,3.2078,2684.4,2683.9,3.2078]
[1740394783295,3.2078,2684.4,2683.6,5.5281]
[1740394783998,3.2078,2684.4,2683.9,3.2078]
[1740394784196,3.2078,2684.4,2684.0,1.7225]
[1740394787103,3.2078,2684.4,2683.9,3.2078]
[1740394795215,3.2078,2684.4,2683.9,6.2888]
[1740394796710,0.00558888,2684.5,2683.9,6.2888]
[1740394797013,0.00558888,2684.5,2684.2,3.2078]
[1740394797215,0.00558888,2684.5,2684.3,4.7838]
[1740394799011,3.2078,2685.6,2684.3,10.7838]
[1740394799210,3.2078,2685.6,2685.0,3.2078]
[1740394799411,0.5371,2685.5,2685.0,3.2078]
[1740394799614,1.11,2685.4,2685.0,3.2078]
[1740394800409,1.11,2685.4,2685.1,1.7111]
[1740394800619,0.5511,2685.4,2685.1,1.7111]
[1740394800826,0.5511,2685.4,2685.1,1.1308]
[1740394801027,0.5511,2685.4,2685.0,3.2078]
[1740394802926,3.2078,2685.1,2684.9,0.00558888]
[1740394803122,0.6196342,2685.0,2683.8,0.5746]
[1740394803327,0.6196342,2685.0,2683.7,3.2078]
[1740394803328,3.2078,2684.1,2683.7,3.2078]
[1740394803531,3.2078,2684.1,2683.4,1.1526]
[1740394803830,4.2143,2684.0,2683.3,3.2078]
[1740394804027,4.7546,2684.0,2683.3,3.2078]
[1740394804328,0.00558888,2683.9,2683.6,3.2078]
[1740394804530,0.00558888,2683.9,2683.7,1.1526]
[1740394804827,0.5755,2684.8,2683.8,0.5888]
[1740394805027,1.1001,2685.3,2684.7,3.2078]
[1740394805328,1.1001,2685.3,2684.8,4.223]
[1740394805824,1.10568888,2685.3,2684.8,4.22858888]
[1740394806522,1.10568888,2685.3,2684.8,1.14958888]
[1740394807526,0.00558888,2685.3,2685.0,3.2078]
[1740394808822,0.00558888,2685.3,2684.8,1.14958888]
[1740394808823,0.00558888,2685.3,2684.8,0.56758888]
[1740394809227,0.00558888,2685.3,2684.9,0.5586]
[1740394811333,0.00558888,2685.3,2684.8,0.56758888]
[1740394811529,3.2078,2685.1,2684.8,0.00558888]
[1740394811832,4.2617,2685.0,2684.8,0.00558888]
[1740394812235,4.8269,2685.0,2684.8,0.00558888]
[1740394812426,10.8269,2685.0,2684.0,0.5432]
[1740394812624,3.2078,2684.5,2683.8,20.655]
[1740394812826,3.2078,2684.2,2683.7,0.5432]
[1740394813530,3.2078,2684.2,2683.7,0.54878888]
[1740394813722,3.2078,2684.2,2683.7,0.00558888]
[1740394815633,0.5491,2684.1,2683.7,0.00558888]
[1740394816031,3.079,2684.0,2683.7,0.00558888]
[1740394817133,3.2078,2683.9,2683.7,0.00558888]
[1740394817335,3.2078,2683.9,2683.0,3.2078]
[1740394817534,3.2078,2683.6,2683.0,3.2078]
[1740394817828,0.5836,2683.5,2683.0,3.2078]
[1740394818539,0.58918888,2683.5,2683.0,3.21338888]
[1740394819646,3.629,2683.4,2683.0,3.21338888]
[1740394821766,3.2078,2683.2,2683.0,0.00558888]
[1740394822132,0.55,2683.4,2683.0,0.00558888]
[1740394822339,0.00558888,2683.5,2683.0,0.00558888]
[1740394822838,0.00558888,2683.5,2683.0,1.15058888]
[1740394824338,0.00558888,2683.5,2683.0,1.73938888]
[1740394824737,0.00558888,2683.5,2683.2,3.2078]
[1740394827045,0.5804,2684.7,2683.3,4.87750963]
[1740394827234,3.2078,2684.5,2683.8,3.2078]
[1740394827738,3.7882,2684.7,2683.8,6.2868]
[1740394827938,3.7882,2684.7,2683.9,1.6791]
[1740394828138,0.00558888,2684.5,2683.9,1.6791]
[1740394828946,3.2078,2684.4,2683.9,1.6791]
[1740394833251,3.2078,2684.4,2683.9,1.1323]
[1740394833946,3.2078,2684.4,2683.9,1.6877]
[1740394836686,0.00558888,2684.5,2684.1,3.2078]
[1740394837046,0.00558888,2684.5,2684.4,3.2078]
[1740394837850,3.7678,2685.7,2684.4,6.2858]
[1740394838152,7.9806,2685.7,2684.5,4.9352]
[1740394838655,7.9806,2685.7,2684.8,3.2078]
[1740394838845,4.9026,2685.7,2684.8,3.2078]
[1740394839047,0.00558888,2685.5,2685.0,0.00558888]
[1740394842066,3.2078,2685.4,2685.0,0.00558888]
[1740394842256,3.2078,2685.1,2685.0,0.00558888]
[1740394843456,9.2078,2685.1,2685.0,0.00558888]
[1740394843754,9.2078,2685.1,2683.8,3.747]
[1740394843960,3.2078,2684.2,2683.5,3.2078]
[1740394844165,3.6417,2684.1,2683.5,3.2078]
[1740394844655,3.6417,2684.1,2683.5,3.21338888]
[1740394844954,3.64728888,2684.1,2683.5,3.21338888]
[1740394845956,0.57028888,2684.1,2683.5,3.21338888]
[1740394846157,0.00558888,2684.1,2683.5,3.21338888]
[1740394847163,0.00558888,2684.1,2684.0,3.2078]
[1740394850465,0.00558888,2684.1,2683.9,1.11]
[1740394852461,4.3566,2684.9,2684.0,3.2078]
[1740394852661,4.3566,2684.9,2684.0,5.5367]
[1740394852867,4.3566,2684.9,2684.1,40.8]
[1740394853071,4.3566,2684.9,2684.0,8.6137]
[1740394853764,0.00558888,2684.7,2684.0,5.5367]
[1740394854070,0.00558888,2684.7,2684.0,1.746]
[1740394854366,3.2078,2684.6,2684.0,1.746]
[1740394854759,3.2078,2684.6,2683.9,0.5612]
[1740394854956,3.7797,2684.6,2683.9,0.5612]
[1740394855160,3.2078,2684.3,2683.9,0.5612]
[1740394855771,3.7935,2684.3,2683.9,0.5612]
[1740394857267,0.5922,2684.2,2683.9,0.5612]
[1740394858084,0.5922,2684.2,2683.8,3.2078]
[1740394860471,3.6692,2684.2,2683.9,0.5681]
[1740394860673,3.6692,2684.2,2683.8,3.2078]
[1740394861774,3.6692,2684.2,2683.6,0.5681]
[1740394862271,3.2078,2684.0,2683.5,0.00558888]
[1740394862474,0.57,2683.9,2683.5,0.00558888]
[1740394862672,3.625,2683.8,2683.5,0.00558888]
[1740394863175,3.077,2683.8,2683.5,0.00558888]
[1740394863676,3.2078,2684.3,2683.7,3.2078]
[1740394863980,3.7558,2684.6,2684.0,3.2078]
[1740394864172,3.2078,2684.6,2684.0,3.2078]
[1740394864368,3.08258888,2684.7,2684.1,0.537]
[1740394864768,3.2078,2684.6,2684.1,0.537]
[1740394865373,3.2078,2684.3,2683.8,1.0929]
[1740394865675,3.2078,2684.3,2683.8,0.5354]
[1740394865676,3.077,2684.2,2683.8,0.5354]
[1740394865976,3.2078,2684.0,2683.5,0.00558888]
[1740394866171,1.0815,2683.9,2683.5,0.00558888]
[1740394866378,3.2078,2683.7,2683.5,0.00558888]
[1740394868679,3.076,2683.6,2683.5,0.00558888]
[1740394872978,3.2078,2683.7,2683.5,0.00558888]
[1740394873481,3.2078,2684.3,2683.5,0.00558888]
[1740394873678,3.077,2684.2,2683.5,1.15888888]
[1740394873882,3.077,2684.2,2683.6,0.5366]
[1740394874480,3.077,2684.2,2683.8,3.2078]
[1740394876782,3.2078,2684.3,2683.8,3.2078]
[1740394879477,3.2078,2684.6,2683.8,3.2078]
[1740394879782,3.076,2684.6,2684.1,3.2078]
[1740394879986,3.2078,2684.9,2684.2,1.7147]
[1740394880290,3.076,2684.8,2684.2,1.7147]
[1740394880984,3.2078,2684.9,2684.2,1.7147]
[1740394882090,3.08158888,2684.7,2684.2,1.127]
[1740394883086,0.00558888,2684.7,2684.2,1.127]
[1740394883788,0.00558888,2684.7,2684.5,3.2078]
[1740394883983,0.00558888,2684.7,2684.6,0.5858]
[1740394884190,3.076,2685.3,2684.6,0.5858]
[1740394884494,3.2078,2685.5,2684.8,3.2078]
[1740394884495,3.076,2685.4,2684.8,3.2078]
[1740394885390,3.076,2685.4,2684.9,0.5865]
[1740394887495,3.076,2685.4,2685.0,0.571]
[1740394887692,3.076,2685.4,2684.8,3.21338888]
[1740394893984,3.075,2685.4,2684.8,3.21338888]
[1740394897297,3.2078,2685.5,2684.8,3.21338888]
[1740394897496,6.2818,2685.5,2684.8,3.21338888]
[1740394901001,6.2818,2685.5,2684.8,6.28738888]
[1740394901797,3.2078,2685.9,2685.1,3.2078]
[1740394902004,6.2818,2685.9,2685.2,1.6585]
[1740394903600,6.2818,2685.9,2685.2,1.1115]
[1740394904400,6.2818,2685.9,2685.1,3.2078]
[1740394904601,0.77720671,2685.8,2685.1,3.2078]
[1740394905201,0.06004666,2685.7,2685.1,3.2078]
[1740394905602,1.1177,2685.6,2685.1,3.2078]
[1740394905795,3.6243,2685.5,2685.1,3.2078]
[1740394906201,3.2078,2685.4,2684.8,3.21338888]
[1740394906603,3.98500671,2685.4,2684.8,3.21338888]
[1740394910803,3.98500671,2685.4,2684.8,0.00558888]
[1740394911304,3.2078,2685.1,2684.8,0.00558888]
[1740394911506,3.074,2685.0,2684.8,0.00558888]
[1740394911802,4.1928,2685.0,2684.8,0.00558888]
[1740394911999,0.5612,2684.9,2684.8,0.00558888]
[1740394913701,1.34044488,2684.9,2684.8,0.00558888]
[1740394916007,1.34044488,2684.9,2684.2,3.7754]
[1740394917207,0.00558888,2684.8,2684.3,0.00558888]
[1740394917707,3.2078,2684.6,2684.3,0.00558888]
[1740394917903,3.6345,2684.5,2684.3,0.00558888]
[1740394919209,1.0993,2684.4,2683.8,0.5515]
[1740394920210,1.87752831,2684.4,2683.7,3.2078]
[1740394920412,1.87752831,2684.4,2683.8,0.00558888]
[1740394920711,3.2078,2684.0,2683.8,0.00558888]
[1740394920935,3.073,2683.9,2683.8,0.00558888]
[1740394922120,3.6442,2683.9,2683.8,0.00558888]
[1740394922415,4.1814,2683.9,2683.8,0.00558888]
[1740394929715,10.24149387,2683.9,2682.9,3.2078]
[1740394930017,3.2078,2683.5,2682.9,0.5865]
[1740394930209,3.2078,2683.2,2682.4,0.5709]
[1740394930410,3.074,2683.1,2682.4,1.1574]
[1740394930606,3.074,2683.1,2682.5,0.5893]
[1740394930806,0.00558888,2683.0,2682.5,0.59488888]
[1740394932020,3.2078,2682.9,2682.5,0.00558888]
[1740394932317,1.166,2682.8,2682.5,0.00558888]
[1740394932523,3.074,2682.7,2682.5,0.00558888]
[1740394934214,9.074,2682.7,2681.8,3.2078]
[1740394934417,3.2078,2682.2,2681.5,3.2078]
[1740394934618,3.074,2682.1,2681.5,3.2078]
[1740394935521,3.074,2682.1,2681.5,3.21338888]
[1740394936318,3.2078,2681.6,2681.5,0.00558888]
[1740394943928,6.2828,2681.6,2681.5,0.00558888]
[1740394947430,3.2078,2681.6,2681.5,0.00558888]
[1740394952020,6.2828,2681.6,2681.5,0.00558888]
[1740394952229,6.2828,2681.6,2680.7,1.1296]
[1740394952531,3.2078,2681.2,2680.7,1.1296]
[1740394952733,6.2828,2681.2,2680.7,1.1296]
[1740394953334,6.28838888,2681.2,2680.7,1.13518888]
[1740394956030,6.28838888,2681.2,2680.7,0.00558888]
[1740394956236,6.28838888,2681.2,2680.8,0.5411]
[1740394957132,6.28838888,2681.2,2680.7,0.00558888]
[1740394957337,3.2078,2680.9,2680.7,0.00558888]
[1740394957537,3.075,2680.8,2680.7,0.00558888]
[1740394964446,3.075,2680.8,2680.2,4.3502]
[1740394964946,3.075,2680.8,2680.2,3.7901]
[1740394965637,3.85130108,2680.8,2680.2,3.79382594]
[1740394967247,3.075,2680.8,2680.2,3.79382594]
[1740394968147,3.2078,2680.6,2680.2,3.79382594]
[1740394968855,3.2078,2680.6,2680.3,0.5408]
[1740394969746,3.2078,2680.6,2680.3,1.107]
[1740394969948,3.075,2680.5,2680.3,1.107]
[1740394970977,3.075,2680.4,2680.3,1.107]
[1740394971451,3.2078,2680.6,2680.3,1.107]
[1740394978044,3.2078,2680.6,2680.3,0.5408]
[1740394978248,3.7802,2680.6,2680.3,0.5408]
[1740394979344,4.3352,2680.6,2680.3,0.5408]
[1740394980151,3.2078,2680.6,2680.3,0.5408]
[1740394980353,3.2078,2680.6,2680.3,1.1109]
[1740394981647,0.77810487,2681.0,2680.5,3.2078]
[1740394981848,0.77810487,2681.0,2680.3,4.1859]
[1740394982049,3.2078,2681.3,2680.3,4.1859]
[1740394982749,3.2078,2681.0,2680.3,1.1109]
[1740394983054,6.2818,2681.0,2680.3,1.1109]
[1740394983253,3.2078,2680.7,2680.3,1.1109]
[1740394984052,6.2818,2681.0,2680.3,1.1109]
[1740394984720,3.2078,2681.0,2680.3,1.1109]
[1740394984856,3.074,2681.1,2680.3,1.1109]
[1740394985052,3.2078,2681.0,2680.3,1.1109]
[1740394986051,3.2078,2680.7,2680.3,1.1109]
[1740394986859,6.2818,2681.1,2680.3,1.1109]
[1740394993560,6.2818,2681.1,2680.4,40.8]
[1740394993962,6.2818,2681.1,2680.3,1.1109]
[1740394994765,1.6722,2681.0,2680.3,1.1109]
[1740394995662,1.0973,2681.0,2680.3,1.1109]
[1740394997258,3.2078,2681.1,2680.6,3.2078]
[1740394997459,1.1484,2681.6,2680.7,3.6337]
[1740394997660,3.2078,2681.5,2680.8,1.1296]
[1740394997866,3.21338888,2681.2,2680.8,0.5562]
[1740394998064,0.00558888,2681.2,2680.8,0.5562]
[1740394998361,3.21338888,2681.2,2680.8,0.5562]
[1740394998962,0.00558888,2681.2,2680.8,0.5562]
[1740394999264,0.00558888,2681.2,2680.8,3.6292]
[1740394999563,0.00558888,2681.2,2680.9,3.2078]
[1740394999966,3.2078,2681.8,2681.0,2.954]
[1740395000268,3.2078,2681.8,2681.1,0.5734]
[1740395000462,3.2078,2681.8,2681.2,3.073]
[1740395000769,3.2078,2681.8,2681.2,3.6329]
[1740395001065,3.2078,2681.8,2681.2,44.4329]
[1740395001267,3.21338888,2681.8,2681.2,44.4329]
[1740395001665,3.21338888,2681.8,2681.2,3.6329]
[1740395003259,3.21338888,2681.8,2681.3,0.5414]
[1740395008780,0.00558888,2681.8,2681.5,3.2078]
[1740395009084,0.00558888,2681.8,2681.6,0.5901]
[1740395009276,0.00558888,2681.8,2681.7,3.071]
[1740395009581,0.00558888,2681.8,2681.7,3.6529]
[1740395012479,0.00558888,2681.8,2681.6,2.954]
[1740395014286,0.00558888,2681.8,2681.5,3.2078]
[1740395016178,0.00558888,2681.8,2681.6,0.588]
[1740395016980,0.00558888,2681.8,2681.5,3.2078]
[1740395017380,0.00558888,2681.8,2681.4,2.954]
[1740395017882,0.00558888,2681.8,2681.3,0.5414]
[1740395018081,6.28338888,2681.8,2681.2,3.2078]
[1740395018285,1.6658,2681.7,2681.2,3.2078]
[1740395018984,1.1016,2681.7,2681.2,3.2078]
[1740395019184,1.1016,2681.7,2681.1,3.5317]
[1740395019185,0.5727,2681.6,2681.1,3.5317]
[1740395019481,0.5727,2681.6,2680.9,0.5802]
[1740395019682,6.2778,2681.5,2680.6,20.685]
[1740395020185,6.2778,2681.5,2680.8,3.2078]
[1740395021675,6.2778,2681.5,2680.6,20.685]
[1740395021676,6.2778,2681.5,2680.7,3.2078]
[1740395025212,3.2078,2681.5,2680.7,3.2078]
[1740395025990,0.5347,2681.4,2680.7,3.2078]
[1740395028497,3.07,2681.3,2680.7,3.2078]
[1740395028699,0.5515,2681.2,2680.7,3.2078]
[1740395028893,1.1368,2681.2,2680.7,3.2078]
[1740395030595,4.3446,2681.2,2680.7,3.2078]
[1740395031389,3.2078,2680.9,2680.2,0.00372594]
[1740395031608,3.6428,2680.8,2680.2,0.00372594]
[1740395031801,0.5743,2680.7,2680.2,0.00372594]
[1740395031996,1.137,2680.7,2680.2,0.00372594]
[1740395034393,3.2078,2680.6,2680.2,0.00372594]
[1740395041094,3.2078,2680.3,2680.2,0.00372594]
[1740395045997,3.2078,2680.3,2679.8,0.5888]
[1740395046297,3.07,2680.2,2679.8,0.5888]
[1740395048416,3.2078,2680.0,2679.7,0.00558888]
[1740395048739,1.0906,2679.9,2679.7,0.00558888]
[1740395048903,3.07,2679.8,2679.7,0.00558888]
[1740395049498,3.07,2679.8,2679.0,1.1507]
[1740395049499,9.07,2679.8,2679.0,0.5589]
[1740395049808,3.2078,2679.3,2679.0,0.5589]
[1740395049999,3.2078,2679.7,2679.1,0.5775]
[1740395050198,6.2778,2679.7,2679.0,0.5589]
[1740395051902,6.2778,2679.7,2678.9,0.5668]
[1740395051903,3.2078,2679.4,2678.9,0.5668]
[1740395052102,1.1181,2679.3,2678.9,0.5668]
[1740395052299,4.7303,2679.3,2678.9,0.5668]
[1740395052700,4.7303,2679.3,2678.6,0.5775]
[1740395052896,3.2078,2679.1,2678.4,1.1285]
[1740395053699,3.2078,2679.1,2678.4,4.3363]
[1740395054401,3.2078,2679.1,2678.4,3.2078]
[1740395055697,3.07,2679.0,2678.4,3.2078]
[1740395056010,3.07,2679.0,2678.5,0.5509]
[1740395056202,3.07,2679.0,2678.6,0.5575]
[1740395056601,3.07,2679.0,2678.4,3.2078]
[1740395058312,3.2078,2678.7,2678.1,0.5575]
[1740395058500,3.2078,2678.4,2677.8,3.2078]
[1740395058807,3.07,2678.3,2677.8,3.7507]
[1740395059108,3.07,2678.3,2677.8,3.2078]
[1740395061506,3.07,2678.3,2675.9,0.3736]
[1740395061507,3.2078,2678.1,2677.0,3.2078]
[1740395061699,3.2078,2677.8,2677.2,0.5727]
[1740395061903,3.6518,2677.7,2677.2,0.5727]
[1740395062409,3.2078,2677.5,2677.1,0.5896]
[1740395062802,3.2078,2677.5,2677.2,0.5727]
[1740395063404,3.07,2677.4,2677.2,0.5727]
[1740395064009,3.07,2677.4,2676.7,3.2078]
[1740395064305,3.6064,2677.4,2676.8,0.5635]
[1740395064607,0.00559973,2677.3,2676.8,0.5635]
[1740395068409,3.07659973,2677.3,2676.8,0.5635]
[1740395068911,0.00559973,2677.3,2676.8,0.5635]
[1740395070509,0.58569973,2677.3,2676.7,3.7463]
[1740395071313,0.58569973,2677.3,2676.7,3.2078]
[1740395072309,0.58569973,2677.3,2676.2,3.8003]
[1740395072310,3.2078,2677.0,2676.2,3.8003]
[1740395072610,4.2221,2676.9,2676.2,3.8003]
[1740395072811,3.6583,2676.9,2676.2,3.8003]
[1740395073009,0.5873,2676.9,2676.2,3.8003]
[1740395073205,3.2078,2677.0,2676.2,3.8003]
[1740395075601,3.21339973,2677.3,2676.9,3.2078]
[1740395075805,3.21339973,2677.3,2677.0,1.1319]
[1740395076007,3.21339973,2677.3,2677.0,1.7169]
[1740395076215,0.00559973,2677.3,2677.0,1.7169]
[1740395077708,6.28539973,2677.3,2677.0,1.1319]
[1740395078315,6.28539973,2677.3,2676.4,3.2078]
[1740395078516,0.5925,2677.2,2676.5,1.1409]
[1740395079215,3.2078,2677.0,2676.5,1.1409]
[1740395079415,3.072,2676.9,2676.5,1.1409]
[1740395080220,3.072,2676.9,2676.5,0.5464]
[1740395082936,6.2798,2677.0,2676.5,0.5464]
[1740395083321,3.072,2677.0,2676.5,0.5464]
[1740395083618,2.987,2677.2,2676.5,0.5464]
[1740395084518,2.987,2677.2,2676.7,3.2078]
[1740395084917,2.987,2677.2,2676.8,1.1284]
[1740395085319,6.28539973,2677.3,2676.8,1.1284]
[1740395085623,0.00559973,2677.3,2676.8,1.1284]
[1740395092219,3.2078,2677.2,2676.7,3.2078]
[1740395092429,3.6492,2677.1,2676.7,3.2078]
[1740395092621,3.071,2677.1,2676.7,3.2078]
[1740395092924,3.071,2677.1,2676.8,0.5684]
[1740395093725,0.00559973,2677.3,2676.8,0.5684]
[1740395100425,0.82977696,2677.5,2677.0,3.2078]
[1740395100626,3.2078,2678.5,2677.4,3.2078]
[1740395100936,0.5458,2678.7,2677.8,3.2078]
[1740395101120,0.5458,2678.7,2677.5,7.1153]
[1740395101121,3.2078,2678.8,2678.1,3.2078]
[1740395101323,3.2078,2678.8,2678.2,1.0903]
[1740395101519,0.00559973,2678.7,2678.2,1.09589973]
[1740395102629,0.00559973,2678.7,2678.4,3.2078]
[1740395103128,6.2788,2679.4,2678.5,3.071]
[1740395103330,3.2078,2679.4,2678.9,3.2078]
[1740395103629,3.2078,2679.4,2679.0,1.0903]
[1740395104132,3.2078,2679.8,2679.2,3.2078]
[1740395104323,0.00559973,2679.5,2679.2,3.2078]
[1740395105225,0.00559973,2679.5,2679.0,0.5471]
[1740395105423,3.2078,2679.2,2678.3,0.5853]
[1740395105626,3.2078,2678.9,2678.3,0.5853]
[1740395106026,3.2078,2678.9,2678.2,3.80379973]
[1740395109629,3.069,2678.9,2678.3,3.2078]
[1740395110332,3.2078,2678.7,2678.2,0.00559973]
[1740395110625,0.578,2678.6,2678.2,0.00559973]
[1740395110830,3.069,2678.5,2678.2,0.00559973]
[1740395111031,3.2078,2678.4,2678.2,0.00559973]
[1740395111234,3.7587,2678.4,2678.2,0.00559973]
[1740395112136,3.2078,2678.4,2678.2,0.00559973]
[1740395112335,6.8277,2678.8,2678.2,0.00559973]
[1740395112932,6.2768,2678.8,2678.2,0.00559973]
[1740395113733,0.5699,2678.7,2678.2,0.00559973]
[1740395113928,1.7207,2678.7,2678.2,0.00559973]
[1740395114331,1.1299,2678.7,2678.2,0.00559973]
[1740395114531,6.2768,2678.8,2678.2,0.00559973]
[1740395114930,3.069,2678.8,2678.4,3.2078]
[1740395115436,3.069,2678.8,2678.2,3.21339973]
[1740395115739,3.069,2679.0,2678.2,3.21339973]
[1740395116130,3.069,2679.0,2678.2,44.01339973]
[1740395116530,3.069,2679.0,2678.5,3.2078]
[1740395118139,3.2078,2679.1,2678.5,3.2078]
[1740395118335,1.1299,2679.4,2678.9,3.2078]
[1740395118644,3.07359973,2679.5,2678.9,3.2078]
[1740395118940,3.07359973,2679.5,2679.0,0.5622]
[1740395119438,0.00559973,2679.5,2679.0,0.5622]
[1740395120836,0.00559973,2679.5,2679.3,3.2078]
[1740395122444,0.00559973,2679.5,2679.0,0.5622]
[1740395125544,0.00559973,2679.5,2679.0,3.77]
[1740395128939,0.00559973,2679.5,2679.3,3.2078]
[1740395129139,0.5879,2680.4,2679.4,4.2267]
[1740395129339,0.5879,2680.4,2679.8,3.2078]
[1740395129538,0.5879,2680.4,2679.4,7.1807]
[1740395129539,0.5879,2680.4,2679.5,44.0078]
[1740395129741,0.5879,2680.4,2679.6,0.5687]
[1740395129945,0.5879,2680.4,2679.8,3.2078]
[1740395130146,6.8419,2680.5,2679.8,3.2078]
[1740395130346,0.54749973,2680.4,2679.8,3.21339973]
[1740395131247,1.11429973,2680.4,2679.8,3.21339973]
[1740395132145,0.54749973,2680.4,2679.8,3.21339973]
[1740395134153,1.12739973,2680.4,2679.8,3.21339973]
[1740395135047,3.2078,2680.2,2679.8,0.00559973]
[1740395135353,3.067,2680.1,2679.8,0.00559973]
[1740395136152,6.2738,2680.2,2679.8,0.00559973]
[1740395137349,3.2078,2680.2,2679.8,3.21339973]
[1740395137545,3.2078,2680.2,2679.9,1.697]
[1740395139554,3.2078,2680.2,2679.8,3.21339973]
[1740395139854,3.2078,2680.2,2679.8,0.00559973]
[1740395141753,3.2078,2680.2,2679.8,3.21339973]
[1740395141954,3.2078,2680.2,2679.9,1.7015]
[1740395142256,3.2078,2680.2,2679.9,1.1106]
[1740395143501,3.066,2680.1,2679.8,0.00559973]
[1740395144063,3.2078,2679.9,2679.8,0.00559973]
[1740395144558,3.2078,2679.9,2679.1,1.7165]
[1740395144559,9.2078,2679.9,2679.1,0.5566]
[1740395144757,3.2078,2679.6,2679.1,0.5566]
[1740395144959,3.066,2679.5,2679.1,0.5566]
[1740395146361,3.066,2679.5,2679.0,0.00559973]
[1740395146954,3.87919652,2679.5,2679.0,0.00559973]
[1740395147655,0.5355,2679.4,2679.0,0.00559973]
[1740395152160,3.87914558,2679.5,2679.0,0.00559973]
[1740395152563,3.066,2679.5,2679.0,0.00559973]
[1740395152866,3.066,2679.5,2679.1,40.8]
[1740395153166,3.066,2679.5,2679.0,0.00559973]
[1740395153564,3.2078,2679.6,2679.0,0.00559973]
[1740395153764,3.2078,2679.6,2679.0,0.57059973]
[1740395153965,3.2078,2679.6,2679.0,1.13319973]
[1740395155066,3.2078,2679.6,2679.0,0.56819973]
[1740395155258,3.7436,2679.6,2679.0,0.56819973]
[1740395155458,4.55652768,2679.6,2679.0,0.56819973]
[1740395155860,3.7436,2679.6,2679.0,0.56819973]
[1740395159969,3.066,2679.5,2679.0,0.56819973]
[1740395161071,3.066,2679.5,2679.0,0.00559973]
[1740395163170,3.2078,2679.2,2679.0,0.00559973]
[1740395163366,3.6236,2679.1,2679.0,0.00559973]
[1740395163719,10.2102,2679.1,2679.0,0.00559973]
[1740395163875,4.2102,2679.1,2679.0,0.00559973]
[1740395164809,1.1442,2679.1,2679.0,0.00559973]
[1740395164968,4.2102,2679.1,2679.0,0.00559973]
[1740395165572,1.1442,2679.1,2679.0,0.00559973]
[1740395165881,4.2102,2679.1,2679.0,0.00559973]
[1740395167171,10.2102,2679.1,2679.0,0.00559973]
[1740395167377,10.2102,2679.1,2678.2,3.7528]
[1740395167677,3.2078,2678.8,2678.2,3.7528]
[1740395167870,3.066,2678.7,2678.2,3.7528]
[1740395168674,3.07159973,2678.7,2678.2,3.75839973]
[1740395169170,3.2078,2678.5,2678.2,0.55059973]
[1740395169375,3.2078,2678.5,2678.2,0.00559973]
[1740395169376,0.5667,2678.4,2678.2,0.00559973]
[1740395169677,3.066,2678.3,2678.2,0.00559973]
[1740395170777,0.5534,2678.6,2678.2,0.00559973]
[1740395170978,3.07159973,2678.7,2678.2,3.21339973]
[1740395171879,0.00559973,2678.7,2678.2,3.21339973]
[1740395172075,0.00559973,2678.7,2678.5,3.2078]
[1740395172378,0.00559973,2678.7,2678.6,0.5718]
[1740395173378,0.00559973,2678.7,2678.5,3.2078]
[1740395173379,0.00559973,2678.7,2678.2,0.00559973]
[1740395173581,3.2078,2678.6,2678.2,0.00559973]
[1740395173777,3.2078,2678.3,2677.8,3.2078]
[1740395174082,3.066,2678.2,2677.4,4.9626]
[1740395174474,3.2078,2678.0,2677.4,4.9626]
[1740395174681,3.2078,2678.0,2677.4,1.1622]
[1740395174980,3.2078,2678.0,2676.8,3.2078]
[1740395175181,3.2078,2678.0,2676.7,3.6586]
[1740395175182,0.5913,2677.9,2677.1,3.2078]
[1740395175381,3.066,2677.8,2677.1,3.2078]
[1740395176973,3.066,2677.8,2677.2,0.5747]
[1740395177776,3.2078,2677.7,2677.2,0.5747]
[1740395181086,6.2738,2678.0,2677.2,0.5747]
[1740395181282,3.2078,2678.0,2677.4,3.2078]
[1740395181477,3.2078,2678.0,2677.5,0.5503]
[1740395181878,3.2078,2678.4,2677.8,3.2078]
[1740395182080,3.2078,2678.4,2677.9,1.1524]
[1740395182680,3.07159973,2678.7,2678.1,3.2078]
[1740395182887,3.07159973,2678.7,2678.0,2.954]
[1740395183085,3.07159973,2678.7,2678.0,6.1618]
[1740395183586,3.07159973,2678.7,2678.0,2.954]
[1740395183988,3.07159973,2678.7,2678.0,6.1618]
[1740395183989,0.00559973,2678.7,2678.0,6.1618]
[1740395184191,0.00559973,2678.7,2678.1,3.066]
[1740395184384,0.00559973,2678.7,2678.3,3.2078]
[1740395184580,0.00559973,2678.7,2678.4,0.5355]
[1740395184777,0.00559973,2678.7,2678.5,0.5708]
[1740395185082,0.00559973,2678.7,2678.5,1.1237]
[1740395189397,3.2078,2679.4,2678.6,3.2078]
[1740395189692,3.2078,2679.4,2678.6,3.5113535]
[1740395189887,3.2078,2679.4,2678.7,40.8]
[1740395190594,3.2078,2679.4,2678.6,3.5113535]
[1740395190595,0.00559973,2679.3,2678.8,0.00559973]
[1740395190986,0.00559973,2679.3,2678.8,40.80559973]
[1740395191790,0.00559973,2679.3,2678.8,0.00559973]
[1740395194090,0.00559973,2679.3,2678.9,3.2078]
[1740395194289,0.00559973,2679.3,2679.2,3.2078]
[1740395195386,3.2078,2680.0,2679.2,3.2078]
[1740395196393,0.00559973,2679.9,2679.2,3.2078]
[1740395197091,0.00559973,2679.9,2679.7,3.2078]
[1740395197292,0.00559973,2679.9,2679.8,1.1251]